fUSD/lending_fUSD_20260116
["ID","MTS","AMOUNT","RATE_DAILY","PERIOD"]
[402172211,1768569930488,-183.689312,0.00043005,65]
[402172212,1768569930518,-183.689312,0.00043005,65]
[402172213,1768569930547,-183.689312,0.00043005,65]
[402172214,1768569930575,-183.689312,0.00043005,65]
[402172215,1768569930605,-151.0,0.00043005,65]
[402172216,1768569930633,-183.689303,0.00043005,65]
[402172217,1768569930661,-151.0,0.00043005,65]
[402172218,1768569930690,-161.535987,0.00043005,65]
[402172219,1768569930720,-151.0,0.00043005,65]
[402172220,1768569930749,-151.0,0.00043005,65]
[402172221,1768569930780,-151.0,0.00043005,65]
[402172222,1768569930810,-151.0,0.00043005,65]
[402172223,1768569930841,-151.0,0.00043005,65]
[402172224,1768569930871,-151.0,0.00043005,65]
[402172225,1768569930903,-151.0,0.00043005,65]
[402172226,1768569930933,-151.0,0.00043005,65]
[402172227,1768569930963,-151.0,0.00043005,65]
[402172228,1768569930993,-151.0,0.00043005,65]
[402172229,1768569931023,-151.0,0.00043005,65]
[402172230,1768569931053,-151.0,0.00043005,65]
[402172231,1768569931083,-151.0,0.00043005,65]
[402172232,1768569931113,-151.0,0.00043005,65]
[402172233,1768569931143,-151.0,0.00043005,65]
[402172234,1768569931174,-151.0,0.00043005,65]
[402172235,1768569931204,-151.0,0.00043005,65]
[402172236,1768569931233,-151.0,0.00043005,65]
[402172237,1768569931263,-151.0,0.00043005,65]
[402172238,1768569931292,-151.0,0.00043005,65]
[402172239,1768569931323,-256.648655,0.00043005,65]
[402172240,1768569931354,-151.0,0.00043005,65]
[402172241,1768569931386,-151.0,0.00043005,65]
[402172242,1768569931414,-153.295362,0.00043005,65]
[402172243,1768569931443,-151.0,0.00043005,65]
[402172244,1768569931471,-153.820374,0.00043005,65]
[402172245,1768569931501,-151.0,0.00043005,65]
[402172246,1768569931531,-151.0,0.00043005,65]
[402172247,1768569931561,-151.0,0.00043005,65]
[402172248,1768569931588,-151.0,0.00043005,65]
[402172249,1768569931615,-151.0,0.00043005,65]
[402172250,1768569931644,-151.0,0.00043005,65]
[402172251,1768569931793,-151.0,0.00043005,65]
[402172252,1768569931823,-151.0,0.00043005,65]
[402172253,1768569931854,-174.743697,0.00043005,65]
[402172254,1768569931883,-153.26114,0.00043005,65]
[402172255,1768569931912,-194.743684,0.00043005,65]
[402172256,1768569931941,-1574.48346661,0.00043005,120]
[402172257,1768569931970,-151.0,0.00043005,65]
[402172258,1768569931998,-151.0,0.00043005,65]
[402172259,1768569932027,-151.0,0.00043005,65]
[402172260,1768569932055,-151.0,0.00043005,65]
[402172261,1768569932084,-151.0,0.00043005,65]
[402172262,1768569932112,-176.687047,0.00043005,65]
[402172263,1768569932140,-231.743163,0.00043005,30]
[402172264,1768569932168,-500.0,0.00043005,120]
[402172265,1768569932197,-1000.0,0.00043005,120]
[402172266,1768569932224,-1000.0,0.00043005,120]
[402172267,1768569932252,-551.9505316,0.00043005,120]
[402172278,1768569940106,-194.34199315,0.00015673,2]
[402172559,1768569956758,4458.13,0.00043005,30]
[402172664,1768569962881,500.0,0.00043005,120]
[402172718,1768569966203,151.0,0.00043005,120]
[402172720,1768569966238,151.0,0.00043005,120]
[402172731,1768569966813,156.587,0.00043005,120]
[402172734,1768569966912,151.0,0.00043005,120]
[402172739,1768569967177,300.0,0.00043005,120]
[402172751,1768569967768,151.0,0.00043005,120]
[402172753,1768569967805,162.380719,0.00043005,120]
[402172756,1768569967921,311.1,0.00043005,120]
[402172759,1768569968017,151.0,0.00043005,120]
[402172760,1768569968054,168.3888056,0.00043005,120]
[402172767,1768569968402,311.1,0.00043005,120]
[402172771,1768569968563,500.0,0.00043005,120]
[402172773,1768569968617,500.0,0.00043005,120]
[402172775,1768569968654,151.0,0.00043005,120]
[402172776,1768569968693,174.61919141,0.00043005,120]
[402172785,1768569969152,500.0,0.00043005,120]
[402172788,1768569969223,151.0,0.00043005,120]
[402172789,1768569969257,500.0,0.00043005,120]
[402172791,1768569969295,174.61919141,0.00043005,120]
[402172795,1768569969487,414.0,0.00043005,120]
[402172801,1768569969745,500.0,0.00043005,120]
[402172803,1768569969827,151.0,0.00043005,120]
[402172805,1768569969863,500.0,0.00043005,120]
[402172809,1768569970083,429.318,0.00043005,120]
[402172816,1768569970406,500.0,0.00043005,120]
[402172818,1768569970443,500.0,0.00043005,120]
[402172819,1768569970478,151.0,0.00043005,120]
[402172824,1768569970700,445.202766,0.00043005,120]
[402172831,1768569971012,500.0,0.00043005,120]
[402172833,1768569971088,151.0,0.00043005,120]
[402172835,1768569971137,500.0,0.00043005,120]
[402172839,1768569971302,461.67526834,0.00043005,120]
[402172846,1768569971609,500.0,0.00043005,120]
[402172848,1768569971646,500.0,0.00043005,120]
[402172852,1768569971801,500.0,0.00043005,120]
[402172855,1768569971906,478.75725327,0.00043005,120]
[402172861,1768569972207,250.0,0.00043005,120]
[402172863,1768569972251,500.0,0.00043005,120]
[402172865,1768569972292,500.0,0.00043005,120]
[402172868,1768569972431,500.0,0.00043005,120]
[402172870,1768569972476,500.0,0.00043005,120]
[402172872,1768569972524,496.47127164,0.00043005,120]
[402172878,1768569972794,250.0,0.00043005,120]
[402172879,1768569972831,500.0,0.00043005,120]
[402172881,1768569972884,500.0,0.00043005,120]
[402172885,1768569973039,500.0,0.00043005,120]
[402172888,1768569973107,514.84070869,0.00043005,120]
[402172889,1768569973139,500.0,0.00043005,120]
[402172895,1768569973418,250.0,0.00043005,120]
[402172897,1768569973450,500.0,0.00043005,120]
[402172899,1768569973487,500.0,0.00043005,120]
[402172908,1768569973895,500.0,0.00043005,120]
[402172910,1768569973933,500.0,0.00043005,120]
[402172911,1768569973966,533.88981491,0.00043005,120]
[402172915,1768569974098,250.0,0.00043005,120]
[402172916,1768569974138,500.0,0.00043005,120]
[402172919,1768569974195,1239.0,0.00043005,120]
[402172922,1768569974335,500.0,0.00043005,120]
[402172924,1768569974372,500.0,0.00043005,120]
[402172926,1768569974403,553.64373807,0.00043005,120]
[402172932,1768569974702,500.0,0.00043005,120]
[402172935,1768569974783,250.0,0.00043005,120]
[402172937,1768569974817,1239.0,0.00043005,120]
[402172940,1768569974961,500.0,0.00043005,120]
[402172943,1768569975030,574.12855637,0.00043005,120]
[402172948,1768569975443,250.0,0.00043005,120]
[402172950,1768569975479,1239.0,0.00043005,120]
[402172953,1768569975602,500.0,0.00043005,120]
[402172956,1768569975680,595.37131296,0.00043005,120]
[402172964,1768569976060,250.0,0.00043005,120]
[402172965,1768569976097,1239.0,0.00043005,120]
[402172969,1768569976217,500.0,0.00043005,120]
[402172971,1768569976289,617.40005154,0.00043005,120]
[402172980,1768569976691,1239.0,0.00043005,120]
[402172982,1768569976732,250.0,0.00043005,120]
[402172985,1768569976842,500.0,0.00043005,120]
[402172986,1768569976878,500.0,0.00043005,120]
[402172988,1768569976933,640.24385345,0.00043005,120]
[402172996,1768569977326,1239.0,0.00043005,120]
[402172999,1768569977414,250.0,0.00043005,120]
[402173004,1768569977619,500.0,0.00043005,120]
[402173005,1768569977655,500.0,0.00043005,120]
[402173007,1768569977692,500.0,0.00043005,120]
[402173009,1768569977739,663.93287602,0.00043005,120]
[402173013,1768569977933,1239.0,0.00043005,120]
[402173016,1768569978013,250.0,0.00043005,120]
[402173018,1768569978101,500.0,0.00043005,120]
[402173020,1768569978147,500.0,0.00043005,120]
[402173022,1768569978187,500.0,0.00043005,120]
[402173024,1768569978225,688.49839244,0.00043005,120]
[402173034,1768569978689,250.0,0.00043005,120]
[402173037,1768569978822,713.97283296,0.00043005,120]
[402173039,1768569978858,500.0,0.00043005,120]
[402173040,1768569978892,500.0,0.00043005,120]
[402173049,1768569979339,250.0,0.00043005,120]
[402173052,1768569979441,740.38982778,0.00043005,120]
[402173054,1768569979474,500.0,0.00043005,120]
[402173057,1768569979572,500.0,0.00043005,120]
[402173061,1768569980009,250.0,0.00043005,120]
[402173063,1768569980115,500.0,0.00043005,120]
[402173073,1768569980594,767.7842514,0.00043005,120]
[402173075,1768569980683,250.0,0.00043005,120]
[402173080,1768569980894,500.0,0.00043005,120]
[402173088,1768569981265,796.19226871,0.00043005,120]
[402173090,1768569981313,250.0,0.00043005,120]
[402173102,1768569981891,796.19226871,0.00043005,120]
[402173104,1768569981930,250.0,0.00043005,120]
[402173117,1768569982613,250.0,0.00043005,120]
[402173129,1768569983216,250.0,0.00043005,120]
[402173137,1768569983640,520.0,0.00043005,120]
[402173140,1768569983826,250.0,0.00043005,120]
[402173157,1768569984719,250.0,0.00043005,120]
[402173162,1768569984969,151.0,0.00043005,120]
[402173174,1768569985573,156.587,0.00043005,120]
[402173186,1768569986217,162.380719,0.00043005,120]
[402173198,1768569986818,168.3888056,0.00043005,120]
[402173211,1768569987449,174.61919141,0.00043005,120]
[402173223,1768569988042,174.61919141,0.00043005,120]
[402173931,1768570027788,250.0,0.00043005,120]
[402173946,1768570028562,250.0,0.00043005,120]
[402173959,1768570029195,250.0,0.00043005,120]
[402173972,1768570029795,250.0,0.00043005,120]
[402173979,1768570030113,427.83577414,0.00043005,120]
[402173986,1768570030507,250.0,0.00043005,120]
[402173991,1768570030781,689.66878,0.00043005,120]
[402173999,1768570031130,250.0,0.00043005,120]
[402174012,1768570031739,250.0,0.00043005,120]
[402174025,1768570032390,250.0,0.00043005,120]
[402174036,1768570032940,305.68208505,0.00043005,120]
[402174130,1768570038288,983.0,0.00043005,120]
[402174188,1768570041577,227.80937861,0.00043005,120]
[402174388,1768570052996,328.26916318,0.00043005,120]
[402174405,1768570054109,-305.65800685,0.00015673,2]
[402174407,1768570054130,-500.0,0.00015773,2]
[402174408,1768570054150,-202.33835717,0.00016321,2]
[402174409,1768570054170,-300.0,0.00016646,2]
[402174411,1768570054189,-300.0,0.00016647,2]
[402174412,1768570054210,-42.16723187,0.00016647,2]
[402174413,1768570054241,-1157.83276813,0.00016647,2]
[402174415,1768570054261,-300.0,0.00016647,2]
[402174416,1768570054282,-550.0,0.00016647,2]
[402174417,1768570054302,-6615.38892547,0.00016648,2]
[402175074,1768570081832,1510.7475093,0.0003,120]
[402175764,1768570111192,-177.9353373,0.000154,2]
[402175800,1768570112670,-204.00360989,0.000154,2]
[402176536,1768570145067,-125.6048781,0.000154,2]
[402176537,1768570145089,-348.62491741,0.00015773,2]
[402176539,1768570145110,-465.84876242,0.00015773,2]
[402176666,1768570150908,150.0,0.00043005,30]
[402176945,1768570163738,499.0,0.00043005,30]
[402177738,1768570198579,500.0,0.00043005,60]
[402178405,1768570231388,-151.0,0.00016316,2]
[402178406,1768570231398,-151.0,0.00016316,2]
[402178407,1768570231407,-151.0,0.00016319,2]
[402178408,1768570231418,-67.77267788,0.00016526,2]
[402178410,1768570231430,-132.22732212,0.00016526,2]
[402178411,1768570231440,-1932.71979544,0.00016648,2]
[402178412,1768570231455,-1848.46471605,0.00016648,2]
[402178413,1768570231466,-1300.0,0.00016648,2]
[402178505,1768570236135,-12576.51678851,0.00016648,2]
[402178506,1768570236145,-2500.0,0.00016648,2]
[402178507,1768570236155,-1781.287,0.00016648,2]
[402178508,1768570236164,-184.005,0.00016648,2]
[402178509,1768570236173,-300.0,0.00016648,2]
[402178510,1768570236182,-765.0,0.00016648,2]
[402178512,1768570236192,-152.13538667,0.00016649,2]
[402178513,1768570236202,-489.60562338,0.00016649,2]
[402178514,1768570236211,-1706.09049128,0.00016649,2]
[402178515,1768570236221,-6297.75148707,0.00016649,2]
[402178516,1768570236231,-500.0,0.00016653,2]
[402178518,1768570236240,-500.0,0.00016708,2]
[402178519,1768570236249,-34483.93905779,0.00016728,2]
[402178520,1768570236258,-151.0,0.00016738,2]
[402178521,1768570236268,-151.0,0.00016738,2]
[402178522,1768570236277,-151.0,0.00016738,2]
[402178524,1768570236287,-151.0,0.00016738,2]
[402178525,1768570236296,-151.0,0.00016738,2]
[402178526,1768570236306,-151.0,0.00016738,2]
[402178527,1768570236315,-151.0,0.00016738,2]
[402178528,1768570236324,-151.0,0.00016738,2]
[402178529,1768570236333,-151.0,0.00016738,2]
[402178531,1768570236343,-151.0,0.00016738,2]
[402178532,1768570236351,-151.0,0.00016738,2]
[402178533,1768570236360,-151.0,0.00016738,2]
[402178534,1768570236370,-151.0,0.00016738,2]
[402178535,1768570236379,-151.0,0.00016738,2]
[402178537,1768570236388,-151.0,0.00016738,2]
[402178538,1768570236397,-151.0,0.00016738,2]
[402178539,1768570236406,-151.0,0.00016738,2]
[402178540,1768570236416,-151.0,0.00016738,2]
[402178541,1768570236426,-151.0,0.00016738,2]
[402178543,1768570236435,-151.0,0.00016738,2]
[402178544,1768570236445,-574.96731124,0.00016747,2]
[402178545,1768570236455,-150.0,0.00016747,2]
[402178546,1768570236463,-1053.4953,0.00016749,2]
[402178548,1768570236476,-5159.2109,0.00016749,2]
[402178549,1768570236486,-1000.0,0.00016749,2]
[402178550,1768570236495,-500.0,0.00016763,2]
[402178551,1768570236504,-1706.09049122,0.00016788,2]
[402178552,1768570236513,-6297.75148698,0.00016788,2]
[402178553,1768570236523,-1400.0,0.000168,2]
[402178555,1768570236532,-500.0,0.000168,2]
[402178556,1768570236546,-500.0,0.00016817,2]
[402178557,1768570236555,-489.60562335,0.00016828,2]
[402178558,1768570236565,-500.0,0.00016848,2]
[402178560,1768570236575,-500.0,0.00016848,2]
[402178561,1768570236584,-500.0,0.00016848,2]
[402178562,1768570236594,-1143.26,0.00016848,2]
[402178563,1768570236603,-500.0,0.00016848,2]
[402178564,1768570236612,-500.0,0.00016848,2]
[402178566,1768570236622,-500.0,0.00016848,2]
[402178567,1768570236632,-500.0,0.00016848,2]
[402178568,1768570236642,-500.0,0.00016849,2]
[402178569,1768570236654,-500.0,0.00016872,2]
[402178570,1768570236665,-338.91793733,0.00016927,2]
[402178572,1768570236678,-161.08206267,0.00016927,2]
[402178573,1768570236688,-131.91717045,0.00016927,2]
[402178574,1768570236708,-1574.17332077,0.00016927,2]
[402178576,1768570236718,-103.50036334,0.00016927,2]
[402178591,1768570237412,-2980.82713692,0.00016927,2]
[402178592,1768570237425,-380.772,0.00016927,2]
[402178594,1768570237474,-2832.65198672,0.00016927,2]
[402178595,1768570237485,-500.0,0.00016982,2]
[402178597,1768570237494,-250.0,0.00017,2]
[402178598,1768570237505,-489.60562335,0.00017006,2]
[402178599,1768570237517,-500.0,0.00017037,2]
[402178600,1768570237530,-1706.09049122,0.00017066,2]
[402178601,1768570237539,-6297.75148698,0.00017066,2]
[402178603,1768570237550,-500.0,0.00017091,2]
[402178604,1768570237561,-1143.26,0.00017122,2]
[402178605,1768570237570,-197.36,0.00017141,2]
[402178606,1768570237579,-500.0,0.00017146,2]
[402178607,1768570237589,-489.60562335,0.00017185,2]
[402178609,1768570237598,-500.0,0.00017201,2]
[402178610,1768570237607,-1706.09049122,0.00017205,2]
[402178611,1768570237617,-6297.75148698,0.00017205,2]
[402178612,1768570237634,-5074.53355401,0.0001724,2]
[402178613,1768570237643,-600.0,0.0001724,2]
[402178615,1768570237652,-195.0,0.0001724,2]
[402178616,1768570237661,-300.0,0.0001724,2]
[402178617,1768570237670,-246.180182,0.0001724,2]
[402178618,1768570237679,-300.0,0.0001724,2]
[402178619,1768570237689,-2500.0,0.0001724,2]
[402178621,1768570237698,-300.73444003,0.0001724,2]
[402178622,1768570237707,-200.0,0.0001724,2]
[402178623,1768570237717,-201.11018168,0.0001724,2]
[402178624,1768570237726,-465.1151102,0.00017256,2]
[402178625,1768570237739,-500.0,0.00017273,2]
[402178627,1768570237749,-1706.09049122,0.00017344,2]
[402178628,1768570237759,-3992.96620455,0.00017344,2]
[402178629,1768570237771,-2304.78528243,0.00017344,2]
[402178630,1768570237780,-219.88514062,0.0001735,2]
[402178631,1768570237791,-30.11485938,0.0001735,2]
[402178633,1768570237801,-489.60562335,0.00017364,2]
[402178634,1768570237810,-1143.26,0.00017396,2]
[402178635,1768570237820,-1706.09049122,0.00017483,2]
[402178636,1768570237830,-807.89687569,0.00017483,2]
[402178637,1768570237842,-328.31959918,0.00017483,2]
[402178639,1768570237854,-5161.53501211,0.00017483,2]
[402178640,1768570237863,-1503.0,0.000175,2]
[402178641,1768570237872,-489.60562335,0.00017543,2]
[402178642,1768570237881,-354.81044866,0.00017555,2]
[402178643,1768570237891,-1706.09049122,0.00017622,2]
[402178644,1768570237900,-6297.75148698,0.00017622,2]
[402178645,1768570237910,-331.02630933,0.0001764,2]
[402178646,1768570237919,-1143.26,0.0001767,2]
[402178647,1768570237931,-1008.0,0.000177,2]
[402178648,1768570237940,-489.60562335,0.00017721,2]
[402178649,1768570237949,-168.0,0.00017739,2]
[402178650,1768570237959,-168.0,0.00017759,2]
[402178651,1768570237968,-1706.09049122,0.00017761,2]
[402178652,1768570237977,-6297.75148698,0.00017761,2]
[402178653,1768570237987,-1500.0,0.000178,3]
[402178654,1768570237998,-1118.51606834,0.000178,2]
[402178655,1768570238010,-1000.0,0.000178,2]
[402178656,1768570238023,-999.0,0.00017851,3]
[402178657,1768570238035,-734.86315293,0.000179,2]
[402178658,1768570238048,-253.13099999,0.000179,3]
[402178659,1768570238059,-1098.9593,0.000179,2]
[402178660,1768570238069,-489.60562335,0.000179,2]
[402178662,1768570238081,-1000.0,0.000179,2]
[402178663,1768570238093,-1706.09049122,0.000179,2]
[402178664,1768570238105,-6297.75148698,0.000179,2]
[402178665,1768570238116,-3704.0,0.000179,2]
[402178667,1768570238130,-1143.26,0.00017944,2]
[402178668,1768570238142,-210.59657926,0.0001799,2]
[402178669,1768570238154,-212.44,0.00017994,2]
[402178670,1768570238166,-858.75135597,0.00017999,2]
[402178671,1768570238178,-6371.6086355,0.00017999,2]
[402178673,1768570238189,-1396.9651375,0.00017999,2]
[402178674,1768570238200,-11768.68373748,0.00017999,2]
[402178675,1768570238226,-964.0942,0.00017999,2]
[402178677,1768570238240,-3011.8398475,0.00017999,2]
[402178679,1768570238297,-10413.85309069,0.00017999,2]
[402178708,1768570239589,-45078.88169453,0.00017999,2]
[402178709,1768570239600,-500.0,0.00017999,2]
[402178710,1768570239611,-500.0,0.00017999,2]
[402178711,1768570239623,-500.0,0.00017999,2]
[402178713,1768570239635,-511.24268744,0.00017999,2]
[402178714,1768570239648,-15458.3481799,0.00017999,2]
[402178715,1768570239663,-553.98597441,0.00017999,2]
[402178716,1768570239677,-500.0,0.00017999,2]
[402178718,1768570239688,-500.0,0.00017999,2]
[402178719,1768570239698,-500.0,0.00017999,2]
[402178720,1768570239709,-500.0,0.00017999,2]
[402178721,1768570239721,-388.31928708,0.00017999,2]
[402178723,1768570239731,-500.0,0.00017999,2]
[402178724,1768570239742,-500.0,0.00017999,2]
[402178725,1768570239754,-500.0,0.00017999,2]
[402178726,1768570239767,-500.0,0.00017999,2]
[402178728,1768570239780,-314.66486057,0.00017999,2]
[402178729,1768570239794,-500.0,0.00017999,2]
[402178730,1768570239805,-511.51763295,0.00017999,2]
[402178731,1768570239815,-500.0,0.00017999,2]
[402178733,1768570239825,-500.0,0.00017999,2]
[402178734,1768570239836,-317.53883731,0.00017999,2]
[402178735,1768570239847,-500.0,0.00017999,2]
[402178737,1768570239876,-500.0,0.00017999,2]
[402178738,1768570239888,-502.31698719,0.00017999,2]
[402178739,1768570239901,-500.0,0.00017999,2]
[402178740,1768570239914,-500.0,0.00017999,2]
[402178742,1768570239927,-500.0,0.00017999,2]
[402178743,1768570239940,-500.0,0.00017999,2]
[402178744,1768570239952,-500.0,0.00017999,2]
[402178745,1768570239964,-276.86923101,0.00017999,2]
[402178747,1768570239980,-413.25749368,0.00017999,2]
[402178748,1768570239992,-50438.66690435,0.00018,2]
[402178749,1768570240014,-883.15138334,0.00018,2]
[402178751,1768570240028,-13368.03291928,0.00018,2]
[402178752,1768570240044,-242028.7626935,0.00018,2]
[402178753,1768570240059,-2900.18651994,0.00018,2]
[402178755,1768570240074,-2189.21569252,0.00018,2]
[402178756,1768570240088,-380.30947352,0.00018,2]
[402178757,1768570240108,-13866.1066969,0.00018,2]
[402178758,1768570240122,-1659536.56550922,0.00018,2]
[402178760,1768570240133,-4951553.61780899,0.00018,2]
[402178761,1768570240168,-3608.27472446,0.00018,2]
[402178843,1768570244014,-6883.494434,0.00018,2]
[402178845,1768570244074,-1295.82455064,0.00018,2]
[402178849,1768570244189,-58236.96352556,0.00018,2]
[402178850,1768570244210,-1520.0,0.00018,2]
[402178851,1768570244222,-9643.44096133,0.00018,2]
[402178852,1768570244235,-3210.0,0.00018,2]
[402178854,1768570244264,-1844.40697459,0.00018,2]
[402178855,1768570244277,-1433.24564057,0.00018,2]
[402178882,1768570245423,-2335.49299604,0.00018,2]
[402178885,1768570245434,-5045.68392121,0.00018,2]
[402178887,1768570245444,-651.4799978,0.00018,2]
[402178896,1768570245455,-5712.99188177,0.00018,2]
[402178897,1768570245889,-1507.26108285,0.00018,2]
[402178899,1768570245925,-753.01482349,0.00018,2]
[402178900,1768570245940,-1326.69248257,0.00018,2]
[402178902,1768570245952,-2079.50002,0.00018,2]
[402179430,1768570273125,500.0,0.00043005,120]
[402180157,1768570342183,316.53,0.0002668,120]
[402180158,1768570349420,2561863.46035973,0.00043005,30]
[402180165,1768570505043,159.83,0.00028596,120]
[402180174,1768570973625,-381.92597695,0.00015773,2]
[402180175,1768570973648,-151.37508259,0.00015773,2]
[402180176,1768570973671,-195.0,0.00015886,2]
[402180177,1768570973694,-250.67139014,0.00015999,2]
[402180178,1768570973718,-305.70207939,0.00015999,2]
[402180179,1768570973741,-166.66,0.00016226,2]
[402180180,1768570973763,-200.0,0.00016293,2]
[402180181,1768570973788,-150.0,0.00016514,2]
[402180182,1768570973811,-2500.0,0.00016528,2]
[402180183,1768570973837,-166.66,0.00016567,2]
[402180184,1768570973862,-1200.0,0.00016626,2]
[402180185,1768570973889,-459.26383462,0.00016627,2]
[402180186,1768570973915,-185.86294316,0.00016627,2]
[402180187,1768570973939,-1425.029,0.00016627,2]
[402180188,1768570973962,-184.005,0.00016627,2]
[402180189,1768570973998,-1000000.0,0.00016628,2]
[402180190,1768571076947,-151.0,0.00043017,65]
[402180191,1768571077299,-293.637328,0.00043017,65]
[402180192,1768571077330,-290.0,0.00043017,120]
[402180193,1768571077358,-151.0,0.00043017,65]
[402180194,1768571077385,-151.0,0.00043017,65]
[402180195,1768571077413,-151.0,0.00043017,65]
[402180196,1768571077440,-151.0,0.00043017,65]
[402180197,1768571077469,-151.0,0.00043017,65]
[402180198,1768571077497,-281.374776,0.00043017,65]
[402180199,1768571077524,-151.0,0.00043017,65]
[402180200,1768571077552,-156.963808,0.00043017,65]
[402180201,1768571077580,-151.000009,0.00043017,65]
[402180202,1768571077609,-151.0,0.00043017,65]
[402180203,1768571077638,-151.0,0.00043017,65]
[402180204,1768571077666,-151.0,0.00043017,65]
[402180205,1768571077696,-151.0,0.00043017,65]
[402180206,1768571077723,-151.0,0.00043017,65]
[402180207,1768571077752,-151.0,0.00043017,65]
[402180208,1768571077781,-151.0,0.00043017,65]
[402180209,1768571077810,-151.0,0.00043017,65]
[402180210,1768571077845,-151.0,0.00043017,65]
[402180211,1768571077874,-151.0,0.00043017,65]
[402180212,1768571077905,-151.0,0.00043017,65]
[402180213,1768571077932,-151.0,0.00043017,65]
[402180214,1768571077959,-151.0,0.00043017,65]
[402180215,1768571077989,-250.774377,0.00043017,65]
[402180216,1768571078021,-324.547393,0.00043017,65]
[402180217,1768571078050,-324.547393,0.00043017,65]
[402180218,1768571078079,-324.547393,0.00043017,65]
[402180219,1768571078110,-324.547393,0.00043017,65]
[402180220,1768571078140,-324.547393,0.00043017,65]
[402180221,1768571078172,-324.547393,0.00043017,65]
[402180222,1768571078202,-324.547393,0.00043017,65]
[402180223,1768571078231,-324.547393,0.00043017,65]
[402180224,1768571078259,-324.547393,0.00043017,65]
[402180225,1768571078288,-324.547393,0.00043017,65]
[402180226,1768571078318,-324.547393,0.00043017,65]
[402180227,1768571078345,-324.547393,0.00043017,65]
[402180228,1768571078372,-324.547393,0.00043017,65]
[402180229,1768571078399,-324.547393,0.00043017,65]
[402180230,1768571078426,-324.547393,0.00043017,65]
[402180231,1768571078455,-324.547393,0.00043017,65]
[402180232,1768571078487,-324.547393,0.00043017,65]
[402180233,1768571078515,-324.547393,0.00043017,65]
[402180234,1768571078543,-324.547393,0.00043017,65]
[402180235,1768571078572,-324.547389,0.00043017,65]
[402180236,1768571078599,-162.471631,0.00043017,65]
[402180237,1768571078629,-151.0,0.00043017,65]
[402180238,1768571078659,-151.0,0.00043017,65]
[402180239,1768571078689,-225.393522,0.00043017,65]
[402180240,1768571078718,-151.0,0.00043017,65]
[402180241,1768571078747,-151.0,0.00043017,65]
[402180242,1768571078774,-151.0,0.00043017,65]
[402180243,1768571078803,-151.0,0.00043017,65]
[402180244,1768571078832,-151.0,0.00043017,65]
[402180245,1768571078863,-151.0,0.00043017,65]
[402180246,1768571078892,-151.0,0.00043017,65]
[402180247,1768571078920,-151.0,0.00043017,65]
[402180248,1768571078949,-151.0,0.00043017,65]
[402180249,1768571078977,-151.0,0.00043017,65]
[402180250,1768571079006,-151.0,0.00043017,65]
[402180251,1768571079036,-164.91473,0.00043017,65]
[402180252,1768571079064,-151.0,0.00043017,65]
[402180253,1768571079095,-151.0,0.00043017,65]
[402180254,1768571079126,-151.0,0.00043017,65]
[402180255,1768571079157,-285.34979531,0.00043017,65]
[402180256,1768571079190,-151.0,0.00043017,65]